lending/lending_fUSD_20250121
["ID","MTS","AMOUNT","RATE_DAILY","PERIOD"]
[349897053,1737484241877,-662.91,0.00019996,2]
[349897054,1737484241887,-949.14,0.00019996,2]
[349897055,1737484241896,-872.87,0.00019996,2]
[349897056,1737484241906,-1125.3,0.00019996,2]
[349897057,1737484241916,-500.0,0.00019996,2]
[349897058,1737484241926,-518.69,0.00019996,2]
[349897059,1737484241935,-500.0,0.00019996,2]
[349897060,1737484241944,-500.0,0.00019996,2]
[349897061,1737484241954,-500.0,0.00019996,2]
[349897062,1737484241963,-705.61,0.00019996,2]
[349897063,1737484241972,-500.0,0.00019996,2]
[349897064,1737484241982,-954.46,0.00019996,2]
[349897065,1737484241992,-631.73,0.00019996,2]
[349897066,1737484242001,-500.0,0.00019996,2]
[349897067,1737484242011,-500.0,0.00019996,2]
[349897068,1737484242020,-3715.65,0.00019996,2]
[349897069,1737484242030,-500.0,0.00019996,2]
[349897070,1737484242041,-500.0,0.00019997,2]
[349897071,1737484242051,-500.0,0.00019997,2]
[349897072,1737484242060,-500.0,0.00019997,2]
[349897073,1737484242069,-500.0,0.00019997,2]
[349897074,1737484242079,-752.92,0.00019997,2]
[349897075,1737484242088,-500.0,0.00019997,2]
[349897076,1737484242098,-500.0,0.00019997,2]
[349897077,1737484242107,-500.0,0.00019997,2]
[349897078,1737484242116,-500.0,0.00019997,2]
[349897079,1737484242127,-500.0,0.00019997,2]
[349897080,1737484242136,-500.0,0.00019997,2]
[349897081,1737484242145,-500.0,0.00019997,2]
[349897082,1737484242155,-500.0,0.00019997,2]
[349897083,1737484242166,-500.0,0.00019997,2]
[349897084,1737484242175,-500.0,0.00019997,2]
[349897085,1737484242185,-500.0,0.00019997,2]
[349897086,1737484242194,-500.0,0.00019997,2]
[349897087,1737484242203,-500.0,0.00019997,2]
[349897088,1737484242212,-500.0,0.00019997,2]
[349897089,1737484242222,-500.0,0.00019997,2]
[349897090,1737484242231,-500.0,0.00019997,2]
[349897091,1737484242242,-531.15,0.00019997,2]
[349897092,1737484242253,-581.34,0.00019997,2]
[349897093,1737484242263,-500.0,0.00019997,2]
[349897094,1737484242272,-500.0,0.00019997,2]
[349897095,1737484242282,-592.62,0.00019997,2]
[349897096,1737484242292,-1025.37,0.00019997,2]
[349897097,1737484242301,-2425.98,0.00019997,2]
[349897098,1737484242311,-615.24,0.00019997,2]
[349897099,1737484242322,-500.0,0.00019997,2]
[349897100,1737484242332,-500.0,0.00019997,2]
[349897101,1737484242341,-500.0,0.00019997,2]
[349897102,1737484242351,-1153.17,0.00019997,2]
[349897103,1737484242361,-500.0,0.00019997,2]
[349897104,1737484242373,-500.0,0.00019997,2]
[349897105,1737484242382,-644.49,0.00019997,2]
[349897106,1737484242392,-619.45,0.00019997,2]
[349897107,1737484242401,-629.25,0.00019997,2]
[349897108,1737484242411,-758.81,0.00019997,2]
[349897109,1737484242421,-621.01,0.00019997,2]
[349897110,1737484242431,-500.0,0.00019998,2]
[349897111,1737484242443,-500.0,0.00019998,2]
[349897112,1737484242454,-500.0,0.00019998,2]
[349897113,1737484242463,-500.0,0.00019998,2]
[349897114,1737484242474,-438.28,0.00019998,2]
[349897115,1737484242484,-500.0,0.00019998,2]
[349897116,1737484242494,-500.0,0.00019998,2]
[349897117,1737484242503,-500.0,0.00019998,2]
[349897118,1737484242512,-500.0,0.00019998,2]
[349897119,1737484242524,-500.0,0.00019998,2]
[349897120,1737484242533,-500.0,0.00019998,2]
[349897121,1737484242543,-647.81580505,0.00019998,2]
[349897122,1737484242552,-522.33667414,0.00019998,2]
[349897123,1737484242562,-500.0,0.00019998,2]
[349897124,1737484242571,-500.0,0.00019998,2]
[349897125,1737484242581,-500.0,0.00019998,2]
[349897126,1737484242591,-500.0,0.00019998,2]
[349897127,1737484242600,-500.0,0.00019998,2]
[349897129,1737484242610,-500.0,0.00019998,2]
[349897130,1737484242620,-500.0,0.00019998,2]
[349897131,1737484242629,-500.0,0.00019998,2]
[349897132,1737484242639,-500.0,0.00019998,2]
[349897133,1737484242648,-500.0,0.00019998,2]
[349897134,1737484242658,-500.0,0.00019998,2]
[349897135,1737484242668,-500.0,0.00019998,2]
[349897136,1737484242678,-500.0,0.00019998,2]
[349897137,1737484242688,-500.0,0.00019998,2]
[349897138,1737484242698,-500.0,0.00019998,2]
[349897139,1737484242707,-524.57745042,0.00019998,2]
[349897141,1737484242717,-500.0,0.00019998,2]
[349897143,1737484242727,-500.0,0.00019998,2]
[349897145,1737484242736,-500.0,0.00019998,2]
[349897147,1737484242745,-500.0,0.00019998,2]
[349897149,1737484242754,-500.0,0.00019998,2]
[349897151,1737484242763,-149.56933599,0.00019998,2]
[349897172,1737484242978,-350.43066401,0.00019998,2]
[349897174,1737484242988,-500.0,0.00019998,2]
[349897176,1737484242998,-500.0,0.00019998,2]
[349897177,1737484243007,-403.49140928,0.00019998,2]
[349897180,1737484243018,-96.50859072,0.00019998,2]
[349897181,1737484243028,-198.37920651,0.00019998,2]
[349897184,1737484243067,-210.57524596,0.000199,2]
[349897185,1737484243076,-301.62079349,0.00019998,2]
[349897186,1737484243086,-500.0,0.00019998,2]
[349897187,1737484243095,-500.0,0.00019998,2]
[349897188,1737484243104,-276.26741786,0.00019998,2]
[349897189,1737484243114,-500.0,0.00019998,2]
[349897190,1737484243124,-500.0,0.00019998,2]
[349897191,1737484243134,-500.0,0.00019998,2]
[349897192,1737484243143,-280.03249077,0.00019998,2]
[349897193,1737484243173,-219.96750923,0.00019998,2]
[349897194,1737484243182,-156.87920173,0.00019998,2]
[349897195,1737484243193,-343.12079827,0.00019998,2]
[349897196,1737484243203,-464.12919173,0.00019998,2]
[349897197,1737484243214,-35.87080827,0.00019998,2]
[349897198,1737484243223,-500.0,0.00019998,2]
[349897199,1737484243233,-168.55719673,0.00019998,2]
[349897200,1737484243245,-261.0300001,0.00019998,2]
[349897201,1737484243557,-578.58314681,0.00019249,2]
[349897202,1737484243569,-468.8786624,0.00019249,2]
[349897203,1737484243580,-459.4436244,0.00019249,2]
[349897204,1737484243591,-578.349716,0.00019249,2]
[349897205,1737484243603,-427.42,0.00019249,2]
[349897206,1737484243614,-513.4034575,0.00019249,2]
[349897207,1737484243629,-567.93,0.00019249,2]
[349897208,1737484243640,-682.68,0.00019249,2]
[349897209,1737484243651,-602.72741978,0.00019249,2]
[349897210,1737484243663,-954.6,0.00019249,2]
[349897211,1737484243674,-764.72434,0.00019249,2]
[349897212,1737484243686,-774.03585973,0.00019249,2]
[349897213,1737484243702,-2516.16206871,0.00019249,2]
[349897214,1737484243714,-2431.99999998,0.00019249,2]
[349897215,1737484243726,-4669.12170469,0.00019249,2]
[349897216,1737484243736,-70.41280317,0.00019998,2]
[349897217,1737484243746,-500.0,0.00019998,2]
[349897218,1737484243756,-500.0,0.00019998,2]
[349897219,1737484243765,-500.0,0.00019998,2]
[349897220,1737484243775,-500.0,0.00019998,2]
[349897221,1737484243784,-500.0,0.00019998,2]
[349897222,1737484243793,-500.0,0.00019998,2]
[349897223,1737484243803,-500.0,0.00019998,2]
[349897224,1737484243812,-500.0,0.00019998,2]
[349897225,1737484243822,-500.0,0.00019998,2]
[349897226,1737484243830,-500.0,0.00019998,2]
[349897227,1737484243839,-500.0,0.00019998,2]
[349897228,1737484243850,-500.0,0.00019998,2]
[349897229,1737484243859,-500.0,0.00019998,2]
[349897230,1737484243868,-500.0,0.00019998,2]
[349897231,1737484243878,-390.89702807,0.00019998,2]
[349897232,1737484243887,-500.0,0.00019998,2]
[349897233,1737484243896,-500.0,0.00019998,2]
[349897234,1737484243906,-500.0,0.00019998,2]
[349897235,1737484243915,-500.0,0.00019998,2]
[349897236,1737484243924,-500.0,0.00019998,2]
[349897237,1737484243933,-500.0,0.00019998,2]
[349897238,1737484243942,-500.0,0.00019998,2]
[349897239,1737484243952,-500.0,0.00019998,2]
[349897240,1737484243961,-500.0,0.00019998,2]
[349897241,1737484243971,-500.0,0.00019998,2]
[349897242,1737484243980,-500.0,0.00019998,2]
[349897243,1737484243990,-500.0,0.00019998,2]
[349897244,1737484243999,-500.0,0.00019998,2]
[349897245,1737484244008,-500.0,0.00019998,2]
[349897246,1737484244018,-500.0,0.00019998,2]
[349897247,1737484244027,-500.0,0.00019998,2]
[349897248,1737484244036,-500.0,0.00019998,2]
[349897249,1737484244045,-500.0,0.00019998,2]
[349897250,1737484244054,-500.0,0.00019998,2]
[349897251,1737484244063,-500.0,0.00019998,2]
[349897252,1737484244072,-500.0,0.00019998,2]
[349897253,1737484244082,-500.0,0.00019998,2]
[349897254,1737484244091,-500.0,0.00019998,2]
[349897255,1737484244101,-500.0,0.00019998,2]
[349897256,1737484244110,-500.0,0.00019998,2]
[349897257,1737484244121,-500.0,0.00019998,2]
[349897258,1737484244130,-500.0,0.00019998,2]
[349897259,1737484244140,-500.0,0.00019998,2]
[349897260,1737484244150,-500.0,0.00019998,2]
[349897261,1737484244159,-500.0,0.00019998,2]
[349897262,1737484244168,-500.0,0.00019998,2]
[349897263,1737484244177,-500.0,0.00019998,2]
[349897264,1737484244187,-500.0,0.00019998,2]
[349897265,1737484244196,-500.0,0.00019998,2]
[349897266,1737484244205,-500.0,0.00019998,2]
[349897267,1737484244215,-500.0,0.00019998,2]
[349897268,1737484244224,-501.67702117,0.00019998,2]
[349897269,1737484244234,-500.0,0.00019998,2]
[349897270,1737484244244,-500.0,0.00019998,2]
[349897271,1737484244255,-527.26036361,0.00019998,2]
[349897272,1737484244264,-500.0,0.00019998,2]
[349897273,1737484244273,-500.0,0.00019998,2]
[349897274,1737484244282,-500.0,0.00019998,2]
[349897275,1737484244292,-500.0,0.00019998,2]
[349897276,1737484244301,-500.0,0.00019998,2]
[349897277,1737484244311,-500.0,0.00019998,2]
[349897278,1737484244321,-500.0,0.00019998,2]
[349897279,1737484244331,-500.0,0.00019998,2]
[349897280,1737484244340,-500.0,0.00019998,2]
[349897281,1737484244350,-500.0,0.00019998,2]
[349897282,1737484244360,-500.0,0.00019998,2]
[349897283,1737484244371,-500.0,0.00019998,2]
[349897284,1737484244381,-500.0,0.00019998,2]
[349897285,1737484244390,-460.67801297,0.00019998,2]
[349897286,1737484244403,-39.32198703,0.00019998,2]
[349897287,1737484244413,-460.39990539,0.00019998,2]
[349897288,1737484244426,-39.60009461,0.00019998,2]
[349897289,1737484244438,-281.61990539,0.00019998,2]
[349897290,1737484244449,-218.38009461,0.00019998,2]
[349897291,1737484244459,-500.0,0.00019998,2]
[349897292,1737484244468,-500.0,0.00019998,2]
[349897293,1737484244479,-500.0,0.00019998,2]
[349897294,1737484244488,-500.0,0.00019998,2]
[349897295,1737484244498,-500.0,0.00019998,2]
[349897296,1737484244507,-500.0,0.00019998,2]
[349897297,1737484244521,-500.0,0.00019998,2]
[349897298,1737484244531,-500.0,0.00019998,2]
[349897299,1737484244541,-500.0,0.00019998,2]
[349897300,1737484244550,-500.0,0.00019998,2]
[349897301,1737484244736,-31.62447796,0.00019998,2]
[349897302,1737484244749,-468.37552204,0.00019998,2]
[349897303,1737484244759,-500.0,0.00019998,2]
[349897304,1737484244769,-500.0,0.00019998,2]
[349897305,1737484244778,-500.0,0.00019998,2]
[349897306,1737484244788,-500.0,0.00019998,2]
[349897307,1737484244797,-260.15027866,0.00019998,2]
[349897308,1737484244809,-239.84972134,0.00019998,2]
[349897309,1737484244818,-500.0,0.00019998,2]
[349897310,1737484244829,-501.21308654,0.00019998,2]
[349897311,1737484244839,-500.0,0.00019998,2]
[349897312,1737484244848,-500.0,0.00019998,2]
[349897313,1737484244859,-500.0,0.00019998,2]
[349897314,1737484244868,-500.0,0.00019998,2]
[349897315,1737484244879,-500.0,0.00019998,2]
[349897316,1737484244888,-500.0,0.00019998,2]
[349897317,1737484244898,-500.0,0.00019998,2]
[349897318,1737484244907,-500.0,0.00019998,2]
[349897319,1737484244917,-500.0,0.00019998,2]
[349897320,1737484244927,-500.0,0.00019998,2]
[349897321,1737484244936,-143.83719212,0.00019998,2]
[349897322,1737484244948,-356.16280788,0.00019998,2]
[349897323,1737484244957,-500.0,0.00019998,2]
[349897324,1737484244967,-500.0,0.00019998,2]
[349897325,1737484244976,-500.0,0.00019998,2]
[349897326,1737484244986,-500.0,0.00019998,2]
[349897327,1737484244995,-500.0,0.00019998,2]
[349897328,1737484245004,-250.70370005,0.00019998,2]
[349897329,1737484245016,-249.29629995,0.00019998,2]
[349897330,1737484245026,-500.0,0.00019998,2]
[349897331,1737484245036,-500.0,0.00019998,2]
[349897332,1737484245045,-500.0,0.00019998,2]
[349897333,1737484245054,-500.0,0.00019998,2]
[349897334,1737484245063,-500.0,0.00019998,2]
[349897335,1737484245071,-500.0,0.00019998,2]
[349897336,1737484245080,-500.0,0.00019998,2]
[349897337,1737484245089,-259.20205593,0.00019998,2]
[349897338,1737484245100,-240.79794407,0.00019998,2]
[349897339,1737484245110,-500.0,0.00019998,2]
[349897340,1737484245120,-500.0,0.00019998,2]
[349897341,1737484245129,-480.85205593,0.00019998,2]
[349897342,1737484245140,-19.14794407,0.00019998,2]
[349897343,1737484245149,-500.0,0.00019998,2]
[349897344,1737484245158,-500.0,0.00019998,2]
[349897345,1737484245167,-500.0,0.00019998,2]
[349897346,1737484245175,-500.0,0.00019998,2]
[349897347,1737484245184,-500.0,0.00019998,2]
[349897348,1737484245193,-500.0,0.00019998,2]
[349897349,1737484245203,-500.0,0.00019998,2]
[349897350,1737484245213,-500.0,0.00019998,2]
[349897351,1737484245222,-500.0,0.00019998,2]
[349897352,1737484245231,-500.0,0.00019998,2]
[349897353,1737484245240,-500.0,0.00019998,2]
[349897354,1737484245251,-500.0,0.00019998,2]
[349897355,1737484245260,-500.0,0.00019998,2]
[349897356,1737484245270,-500.0,0.00019998,2]
[349897357,1737484245279,-500.0,0.00019998,2]
[349897358,1737484245289,-502.53359112,0.00019998,2]
[349897359,1737484245298,-500.0,0.00019998,2]
[349897360,1737484245308,-500.0,0.00019998,2]
[349897361,1737484245318,-500.0,0.00019998,2]
[349897362,1737484245327,-500.0,0.00019998,2]
[349897363,1737484245336,-500.0,0.00019998,2]
[349897364,1737484245345,-500.0,0.00019998,2]
[349897365,1737484245355,-500.0,0.00019998,2]
[349897366,1737484245364,-500.0,0.00019998,2]
[349897367,1737484245374,-500.0,0.00019998,2]
[349897368,1737484245384,-500.0,0.00019998,2]
[349897369,1737484245393,-500.0,0.00019998,2]
[349897370,1737484245403,-500.0,0.00019998,2]
[349897371,1737484245412,-500.0,0.00019998,2]
[349897372,1737484245421,-500.0,0.00019998,2]
[349897373,1737484245431,-500.0,0.00019998,2]
[349897374,1737484245441,-500.0,0.00019998,2]
[349897375,1737484245454,-555.90946887,0.00019998,2]
[349897376,1737484245463,-500.0,0.00019998,2]
[349897377,1737484245473,-500.0,0.00019998,2]
[349897378,1737484245484,-500.0,0.00019998,2]
[349897379,1737484245494,-500.0,0.00019998,2]
[349897380,1737484245503,-500.17062851,0.00019998,2]
[349897381,1737484245512,-500.0,0.00019998,2]
[349897382,1737484245523,-500.0,0.00019998,2]
[349897383,1737484245533,-506.10922645,0.00019998,2]
[349897384,1737484245543,-500.0,0.00019998,2]
[349897385,1737484245552,-500.0,0.00019998,2]
[349897386,1737484245561,-514.1299044,0.00019998,2]
[349897387,1737484245570,-259.3341937,0.00019998,2]
[349897388,1737484245579,-500.0,0.00019998,2]
[349897389,1737484245588,-500.0,0.00019998,2]
[349897390,1737484245597,-793.97,0.00019998,2]
[349897391,1737484245607,-234.33834288,0.00019998,2]
[349897396,1737484245781,-500.0,0.00019721,2]
[349897397,1737484245791,-500.0,0.00019721,2]
[349897398,1737484245801,-500.0,0.00019722,2]
[349897399,1737484245811,-291.54069642,0.00019995,2]
[349897400,1737484245821,-272.76123223,0.00019998,2]
[349897401,1737484245830,-440.33423153,0.00019998,2]
[349897402,1737484245841,-609.48016126,0.00019998,2]
[349897403,1737484245851,-500.0,0.00019998,2]
[349897404,1737484245862,-3066.57,0.00019998,2]
[349897405,1737484245873,-500.0,0.00019998,2]
[349897406,1737484245882,-500.0,0.00019998,2]
[349897407,1737484245891,-500.0,0.00019998,2]
[349897408,1737484245900,-500.0,0.00019998,2]
[349897409,1737484245910,-748.86,0.00019998,2]
[349897410,1737484245919,-500.0,0.00019998,7]
[349897411,1737484245928,-500.0,0.00019998,2]
[349897412,1737484245938,-500.0,0.00019998,2]
[349897413,1737484245948,-500.0,0.00019998,2]
[349897414,1737484245958,-500.0,0.00019998,2]
[349897415,1737484245967,-500.0,0.00019998,2]
[349897416,1737484245977,-500.0,0.00019998,2]
[349897417,1737484245986,-500.0,0.00019998,2]
[349897418,1737484245996,-500.0,0.00019998,2]
[349897419,1737484246006,-505.18478855,0.00019998,2]
[349897420,1737484246016,-500.0,0.00019998,2]
[349897421,1737484246026,-500.0,0.00019998,2]
[349897422,1737484246035,-500.0,0.00019998,2]
[349897423,1737484246044,-500.0,0.00019998,2]
[349897424,1737484246054,-500.0,0.00019998,2]
[349897425,1737484246064,-500.0,0.00019998,2]
[349897426,1737484246073,-500.0,0.00019998,2]
[349897427,1737484246083,-255.9157164,0.00019998,2]
[349897428,1737484246092,-500.0,0.00019998,2]
[349897429,1737484246101,-500.0,0.00019998,2]
[349897430,1737484246112,-500.0,0.00019998,2]
[349897431,1737484246122,-92040.70149905,0.00019999,2]
[349897432,1737484246132,-500.0,0.00019999,2]
[349897433,1737484246141,-500.0,0.00019999,2]
[349897434,1737484246151,-101640.88748661,0.0002,4]
[349897435,1737484246160,-650.98684478,0.0002,2]
[349897436,1737484246169,-500.6882159,0.0002,7]
[349897437,1737484246178,-9999.99,0.0002,2]
[349897438,1737484246187,-9999.99,0.0002,2]
[349897439,1737484246197,-352.59,0.00020089,2]
[349897440,1737484246206,-150.0,0.00020118,2]
[349897441,1737484246216,-210.57524587,0.00020122,2]
[349897442,1737484246226,-291.46723708,0.00020149,2]
[349897443,1737484246236,-5000.0,0.00020163,2]
[349897444,1737484246247,-248.07827217,0.0002017,2]
[349897445,1737484246256,-12500.0,0.00020204,2]
[349897446,1737484246266,-150.0,0.00020218,2]
[349897447,1737484246275,-150.0,0.00020218,2]
[349897448,1737484246284,-160.395,0.0002023,2]
[349897449,1737484246294,-264.90826616,0.00020241,2]
[349897450,1737484246303,-500.0,0.00020269,2]
[349897451,1737484246312,-500.0,0.00020269,2]
[349897452,1737484246322,-615.08,0.00020269,2]
[349897453,1737484246332,-500.0,0.00020269,2]
[349897454,1737484246341,-592.22,0.00020269,2]
[349897455,1737484246351,-1549.84,0.00020269,2]
[349897456,1737484246360,-500.0,0.00020269,2]
[349897457,1737484246369,-1152.16,0.00020269,2]
[349897458,1737484246379,-680.46,0.00020269,2]
[349897459,1737484246388,-1030.49,0.00020269,2]
[349897461,1737484246398,-1383.7,0.00020269,2]
[349897463,1737484246407,-771.88,0.00020269,2]
[349897465,1737484246416,-547.69,0.00020269,2]
[349897467,1737484246426,-1604.99,0.00020269,2]
[349897469,1737484246438,-500.0,0.00020269,2]
[349897471,1737484246449,-1262.99,0.00020269,2]
[349897473,1737484246459,-500.0,0.00020269,2]
[349897475,1737484246468,-500.0,0.00020269,2]
[349897477,1737484246479,-699.87,0.00020269,2]
[349897479,1737484246488,-1547.24,0.00020269,2]
[349897481,1737484246497,-500.0,0.00020269,2]
[349897483,1737484246507,-1230.11,0.00020269,2]
[349897485,1737484246517,-500.0,0.00020269,2]
[349897486,1737484246527,-500.0,0.00020269,2]
[349897487,1737484246536,-500.0,0.00020269,2]
[349897488,1737484246546,-500.0,0.0002027,2]
[349897489,1737484246555,-536.26,0.0002027,2]
[349897490,1737484246565,-500.0,0.0002027,2]
[349897491,1737484246574,-500.0,0.0002027,2]
[349897492,1737484246584,-500.0,0.0002027,2]
[349897493,1737484246593,-514.74,0.0002027,2]
[349897494,1737484246602,-500.0,0.0002027,2]
[349897495,1737484246612,-500.0,0.0002027,2]
[349897496,1737484246622,-500.0,0.0002027,2]
[349897497,1737484246632,-500.0,0.0002027,2]
[349897498,1737484246641,-500.0,0.0002027,2]
[349897499,1737484246651,-500.0,0.0002027,2]
[349897500,1737484246661,-500.0,0.0002027,2]
[349897501,1737484246670,-500.0,0.0002027,2]
[349897502,1737484246679,-500.0,0.0002027,2]
[349897503,1737484246690,-500.0,0.0002027,2]
[349897504,1737484246699,-573.73,0.0002027,2]
[349897505,1737484246710,-500.0,0.0002027,2]
[349897506,1737484246720,-500.0,0.0002027,2]
[349897507,1737484246730,-500.0,0.0002027,2]
[349897508,1737484246740,-463.10756491,0.0002027,2]
[349897509,1737484246750,-500.0,0.0002027,2]
[349897510,1737484246760,-500.0,0.0002027,2]
[349897511,1737484246770,-500.0,0.0002027,2]
[349897512,1737484246779,-500.0,0.0002027,2]
[349897513,1737484246788,-500.0,0.0002027,2]
[349897514,1737484246798,-500.0,0.0002027,2]
[349897515,1737484246808,-500.0,0.0002027,2]
[349897516,1737484246817,-500.0,0.0002027,2]
[349897517,1737484246830,-500.0,0.0002027,2]
[349897518,1737484246839,-500.0,0.0002027,2]
[349897519,1737484246849,-500.0,0.0002027,2]
[349897520,1737484246859,-500.0,0.0002027,2]
[349897521,1737484246869,-500.0,0.0002027,2]
[349897522,1737484246879,-500.0,0.0002027,2]
[349897523,1737484246888,-500.0,0.0002027,2]
[349897524,1737484246898,-500.0,0.0002027,2]
[349897525,1737484246907,-500.0,0.0002027,2]
[349897526,1737484246918,-500.0,0.0002027,2]
[349897527,1737484246928,-486.90177044,0.0002027,2]
[349897528,1737484246938,-500.0,0.0002027,2]
[349897529,1737484246949,-500.0,0.0002027,2]
[349897530,1737484246959,-500.0,0.0002027,2]
[349897531,1737484246969,-500.0,0.0002027,2]
[349897532,1737484246979,-432.58,0.0002027,2]
[349897533,1737484246990,-500.0,0.0002027,2]
[349897534,1737484247001,-500.0,0.0002027,2]
[349897535,1737484247010,-500.0,0.0002027,2]
[349897536,1737484247022,-500.0,0.0002027,2]
[349897537,1737484247032,-500.0,0.0002027,2]
[349897538,1737484247041,-500.0,0.0002027,2]
[349897539,1737484247053,-500.0,0.0002027,2]
[349897540,1737484247063,-500.0,0.0002027,2]
[349897541,1737484247072,-252.90070783,0.0002027,2]
[349897542,1737484247082,-500.0,0.0002027,2]
[349897543,1737484247091,-500.0,0.0002027,2]
[349897544,1737484247101,-500.0,0.0002027,2]
[349897545,1737484247112,-500.0,0.0002027,2]
[349897546,1737484247122,-500.0,0.0002027,2]
[349897547,1737484247132,-500.0,0.0002027,2]
[349897548,1737484247142,-500.0,0.0002027,2]
[349897549,1737484247151,-500.0,0.0002027,2]
[349897550,1737484247161,-500.0,0.0002027,2]
[349897551,1737484247170,-500.0,0.0002027,2]
[349897552,1737484247180,-500.0,0.0002027,2]
[349897553,1737484247189,-500.0,0.0002027,2]
[349897554,1737484247198,-500.0,0.0002027,2]
[349897555,1737484247208,-500.0,0.0002027,2]
[349897556,1737484247218,-500.0,0.0002027,2]
[349897557,1737484247228,-500.0,0.0002027,2]
[349897558,1737484247237,-799.86,0.0002027,2]
[349897559,1737484247249,-500.0,0.0002027,2]
[349897560,1737484247260,-593.58,0.0002027,2]
[349897561,1737484247271,-526.56,0.0002027,2]
[349897562,1737484247280,-500.0,0.0002027,2]
[349897563,1737484247291,-500.0,0.0002027,2]
[349897564,1737484247300,-1233.47,0.0002027,2]
[349897565,1737484247310,-580.40352711,0.0002027,2]
[349897566,1737484247319,-363.638324,0.0002027,2]
[349897567,1737484247329,-765.87,0.0002027,2]
[349897568,1737484247339,-622.03,0.0002027,2]
[349897569,1737484247348,-500.0,0.0002027,2]
[349897570,1737484247359,-500.0,0.0002027,2]
[349897571,1737484247368,-500.0,0.0002027,2]
[349897572,1737484247378,-582.53,0.0002027,2]
[349897573,1737484247389,-1341.21,0.0002027,2]
[349897574,1737484247399,-1889.2,0.0002027,2]
[349897575,1737484247409,-553.78,0.0002027,2]
[349897576,1737484247420,-1340.57,0.0002027,2]
[349897577,1737484247430,-775.59,0.0002027,2]
[349897578,1737484247439,-500.0,0.0002027,2]
[349897579,1737484247453,-630.1,0.0002027,2]
[349897580,1737484247462,-931.95,0.0002027,2]
[349897581,1737484247471,-769.97,0.0002027,2]
[349897582,1737484247480,-780.04,0.0002027,2]
[349897583,1737484247491,-500.0,0.0002027,2]
[349897584,1737484247500,-767.94,0.0002027,2]
[349897585,1737484247509,-500.0,0.0002027,2]
[349897586,1737484247519,-804.05,0.0002027,2]
[349897587,1737484247529,-1554.11,0.0002027,2]
[349897588,1737484247539,-500.0,0.0002027,2]
[349897589,1737484247548,-907.51,0.0002027,2]
[349897590,1737484247558,-500.0,0.0002027,2]
[349897591,1737484247568,-1989.86,0.0002027,2]
[349897592,1737484247577,-921.79362428,0.0002027,2]
[349897593,1737484247591,-486.87637572,0.0002027,2]
[349897594,1737484247600,-253.52396016,0.0002027,2]
[349897595,1737484247612,-1595.15603984,0.0002027,2]
[349897596,1737484247623,-134.09005721,0.0002027,2]
[349897597,1737484247634,-423.65994279,0.0002027,2]
[349897598,1737484247644,-1659.58,0.0002027,2]
[349897599,1737484247653,-806.86,0.0002027,2]
[349897600,1737484247664,-1105.16,0.0002027,2]
[349897601,1737484247673,-654.79,0.0002027,2]
[349897602,1737484247683,-797.25,0.0002027,2]